{"text_format":"3","workbook":"xlsx","n_sheets":3,"sheets":["Εργασίες","Προβολή μήνα","Προβολή εβδομάδας"],"not_rendered":{"images":4,"defined_names":16},"read":"whole","date_system":"1900"}

{"sheet":"Εργασίες","index":0,"n_rows":15,"n_cols":3,"rows_kept":15}
[null,"ΠΡΟΒΟΛΗ ΜΗΝΑ","ΠΡΟΒΟΛΗ ΕΒΔΟΜΑΔΑΣ"]
[null," ΕΡΓΑΣΙΕΣ"]
[null,"ΠΕΡΙΓΡΑΦΗ","ΠΡΟΘΕΣΜΙΑ"]
[null,"Εργασία 1",{"$f":"TODAY()","v":"2022-12-09"}]
[null,"Εργασία 2",{"$f":"TODAY()+15","v":"2022-12-24"}]
[null,"Εργασία 3",{"$f":"TODAY()+30","v":"2023-01-08"}]
[null,"Εργασία 4",{"$f":"TODAY()+45","v":"2023-01-23"}]
[null,"Εργασία 5",{"$f":"TODAY()+60","v":"2023-02-07"}]
[null,"Εργασία 6",{"$f":"TODAY()+75","v":"2023-02-22"}]
[null,"Εργασία 7",{"$f":"TODAY()+90","v":"2023-03-09"}]
[null,"Εργασία 8",{"$f":"TODAY()+105","v":"2023-03-24"}]
[null,"Εργασία 9",{"$f":"TODAY()+115","v":"2023-04-03"}]
[null,"Εργασία 10",{"$f":"TODAY()+130","v":"2023-04-18"}]
[null,"Εργασία 11",{"$f":"TODAY()+145","v":"2023-05-03"}]
[null,"Εργασία 12",{"$f":"TODAY()+160","v":"2023-05-18"}]

{"sheet":"Προβολή μήνα","index":1,"n_rows":17,"n_cols":8,"rows_kept":17}
[null,"ΕΡΓΑΣΊΕΣ","ΠΡΟΒΟΛΗ ΕΒΔΟΜΑΔΑΣ"]
[null,"Επιλέξτε μήνα:","Εισαγάγετε έτος:"]
[null,"νοεμβρίου",{"$f":"YEAR(TODAY())","v":2022}]
[null," ΠΡΟΒΟΛΗ ΜΗΝΑ"]
[null,"ΔΕΥΤΕΡΑ","ΤΡΙΤΗ","ΤΕΤΑΡΤΗ","ΠΕΜΠΤΗ","ΠΑΡΑΣΚΕΥΗ","ΣΑΒΒΑΤΟ","ΚΥΡΙΑΚΗ"]
[null,{"$f":"IF(WEEKDAY(DATEVALUE(\" 1 \"&ΜΜήνας&ΜηνΈτους),2)=COLUMN(A$2),1,IF(LEN(A6)>0,A6+1,\"\"))","v":{"$error":"#VALUE!"}},{"$error":"#VALUE!"},{"$error":"#VALUE!"},{"$error":"#VALUE!"},{"$error":"#VALUE!"},{"$error":"#VALUE!"},{"$error":"#VALUE!"}]
[null,{"$f":"_xlfn.SINGLE(IF(LEN(B6)=0,\"\",IF(COUNTIF(Εργασίες[ΠΡΟΘΕΣΜΙΑ],DATE(ΜηνΈτους,_xlfn.SINGLE(ΑρΜΜήνα),B6))>0,\"Παράδοση εργασίας!\",\"\")))","v":{"$error":"#VALUE!"}},{"$f":"_xlfn.SINGLE(IF(LEN(C6)=0,\"\",IF(COUNTIF(Εργασίες[ΠΡΟΘΕΣΜΙΑ],DATE(ΜηνΈτους,_xlfn.SINGLE(ΑρΜΜήνα),C6))>0,\"Παράδοση εργασίας!\",\"\")))","v":{"$error":"#VALUE!"}},{"$f":"_xlfn.SINGLE(IF(LEN(D6)=0,\"\",IF(COUNTIF(Εργασίες[ΠΡΟΘΕΣΜΙΑ],DATE(ΜηνΈτους,_xlfn.SINGLE(ΑρΜΜήνα),D6))>0,\"Παράδοση εργασίας!\",\"\")))","v":{"$error":"#VALUE!"}},{"$f":"_xlfn.SINGLE(IF(LEN(E6)=0,\"\",IF(COUNTIF(Εργασίες[ΠΡΟΘΕΣΜΙΑ],DATE(ΜηνΈτους,_xlfn.SINGLE(ΑρΜΜήνα),E6))>0,\"Παράδοση εργασίας!\",\"\")))","v":{"$error":"#VALUE!"}},{"$f":"_xlfn.SINGLE(IF(LEN(F6)=0,\"\",IF(COUNTIF(Εργασίες[ΠΡΟΘΕΣΜΙΑ],DATE(ΜηνΈτους,_xlfn.SINGLE(ΑρΜΜήνα),F6))>0,\"Παράδοση εργασίας!\",\"\")))","v":{"$error":"#VALUE!"}},{"$f":"_xlfn.SINGLE(IF(LEN(G6)=0,\"\",IF(COUNTIF(Εργασίες[ΠΡΟΘΕΣΜΙΑ],DATE(ΜηνΈτους,_xlfn.SINGLE(ΑρΜΜήνα),G6))>0,\"Παράδοση εργασίας!\",\"\")))","v":{"$error":"#VALUE!"}},{"$f":"_xlfn.SINGLE(IF(LEN(H6)=0,\"\",IF(COUNTIF(Εργασίες[ΠΡΟΘΕΣΜΙΑ],DATE(ΜηνΈτους,_xlfn.SINGLE(ΑρΜΜήνα),H6))>0,\"Παράδοση εργασίας!\",\"\")))","v":{"$error":"#VALUE!"}}]
[null,{"$f":"IF(LEN(H6)>0,IF(H6=DAY(DATE(ΜηνΈτους,ΑρΜΜήνα+1,0)),\"\",H6+1),\"\")","v":{"$error":"#VALUE!"}},{"$f":"IF(LEN(B8)>0,IF(B8=DAY(DATE(ΜηνΈτους,ΑρΜΜήνα+1,0)),\"\",B8+1),\"\")","v":{"$error":"#VALUE!"}},{"$error":"#VALUE!"},{"$error":"#VALUE!"},{"$error":"#VALUE!"},{"$error":"#VALUE!"},{"$error":"#VALUE!"}]
[null,{"$f":"_xlfn.SINGLE(IF(LEN(B8)=0,\"\",IF(COUNTIF(Εργασίες[ΠΡΟΘΕΣΜΙΑ],DATE(ΜηνΈτους,_xlfn.SINGLE(ΑρΜΜήνα),B8))>0,\"Παράδοση εργασίας!\",\"\")))","v":{"$error":"#VALUE!"}},{"$f":"_xlfn.SINGLE(IF(LEN(C8)=0,\"\",IF(COUNTIF(Εργασίες[ΠΡΟΘΕΣΜΙΑ],DATE(ΜηνΈτους,_xlfn.SINGLE(ΑρΜΜήνα),C8))>0,\"Παράδοση εργασίας!\",\"\")))","v":{"$error":"#VALUE!"}},{"$f":"_xlfn.SINGLE(IF(LEN(D8)=0,\"\",IF(COUNTIF(Εργασίες[ΠΡΟΘΕΣΜΙΑ],DATE(ΜηνΈτους,_xlfn.SINGLE(ΑρΜΜήνα),D8))>0,\"Παράδοση εργασίας!\",\"\")))","v":{"$error":"#VALUE!"}},{"$f":"_xlfn.SINGLE(IF(LEN(E8)=0,\"\",IF(COUNTIF(Εργασίες[ΠΡΟΘΕΣΜΙΑ],DATE(ΜηνΈτους,_xlfn.SINGLE(ΑρΜΜήνα),E8))>0,\"Παράδοση εργασίας!\",\"\")))","v":{"$error":"#VALUE!"}},{"$f":"_xlfn.SINGLE(IF(LEN(F8)=0,\"\",IF(COUNTIF(Εργασίες[ΠΡΟΘΕΣΜΙΑ],DATE(ΜηνΈτους,_xlfn.SINGLE(ΑρΜΜήνα),F8))>0,\"Παράδοση εργασίας!\",\"\")))","v":{"$error":"#VALUE!"}},{"$f":"_xlfn.SINGLE(IF(LEN(G8)=0,\"\",IF(COUNTIF(Εργασίες[ΠΡΟΘΕΣΜΙΑ],DATE(ΜηνΈτους,_xlfn.SINGLE(ΑρΜΜήνα),G8))>0,\"Παράδοση εργασίας!\",\"\")))","v":{"$error":"#VALUE!"}},{"$f":"_xlfn.SINGLE(IF(LEN(H8)=0,\"\",IF(COUNTIF(Εργασίες[ΠΡΟΘΕΣΜΙΑ],DATE(ΜηνΈτους,_xlfn.SINGLE(ΑρΜΜήνα),H8))>0,\"Παράδοση εργασίας!\",\"\")))","v":{"$error":"#VALUE!"}}]
[null,{"$f":"IF(LEN(H8)>0,IF(H8=DAY(DATE(ΜηνΈτους,ΑρΜΜήνα+1,0)),\"\",H8+1),\"\")","v":{"$error":"#VALUE!"}},{"$f":"IF(LEN(B10)>0,IF(B10=DAY(DATE(ΜηνΈτους,ΑρΜΜήνα+1,0)),\"\",B10+1),\"\")","v":{"$error":"#VALUE!"}},{"$error":"#VALUE!"},{"$error":"#VALUE!"},{"$error":"#VALUE!"},{"$error":"#VALUE!"},{"$error":"#VALUE!"}]
[null,{"$f":"_xlfn.SINGLE(IF(LEN(B10)=0,\"\",IF(COUNTIF(Εργασίες[ΠΡΟΘΕΣΜΙΑ],DATE(ΜηνΈτους,_xlfn.SINGLE(ΑρΜΜήνα),B10))>0,\"Παράδοση εργασίας!\",\"\")))","v":{"$error":"#VALUE!"}},{"$f":"_xlfn.SINGLE(IF(LEN(C10)=0,\"\",IF(COUNTIF(Εργασίες[ΠΡΟΘΕΣΜΙΑ],DATE(ΜηνΈτους,_xlfn.SINGLE(ΑρΜΜήνα),C10))>0,\"Παράδοση εργασίας!\",\"\")))","v":{"$error":"#VALUE!"}},{"$f":"_xlfn.SINGLE(IF(LEN(D10)=0,\"\",IF(COUNTIF(Εργασίες[ΠΡΟΘΕΣΜΙΑ],DATE(ΜηνΈτους,_xlfn.SINGLE(ΑρΜΜήνα),D10))>0,\"Παράδοση εργασίας!\",\"\")))","v":{"$error":"#VALUE!"}},{"$f":"_xlfn.SINGLE(IF(LEN(E10)=0,\"\",IF(COUNTIF(Εργασίες[ΠΡΟΘΕΣΜΙΑ],DATE(ΜηνΈτους,_xlfn.SINGLE(ΑρΜΜήνα),E10))>0,\"Παράδοση εργασίας!\",\"\")))","v":{"$error":"#VALUE!"}},{"$f":"_xlfn.SINGLE(IF(LEN(F10)=0,\"\",IF(COUNTIF(Εργασίες[ΠΡΟΘΕΣΜΙΑ],DATE(ΜηνΈτους,_xlfn.SINGLE(ΑρΜΜήνα),F10))>0,\"Παράδοση εργασίας!\",\"\")))","v":{"$error":"#VALUE!"}},{"$f":"_xlfn.SINGLE(IF(LEN(G10)=0,\"\",IF(COUNTIF(Εργασίες[ΠΡΟΘΕΣΜΙΑ],DATE(ΜηνΈτους,_xlfn.SINGLE(ΑρΜΜήνα),G10))>0,\"Παράδοση εργασίας!\",\"\")))","v":{"$error":"#VALUE!"}},{"$f":"_xlfn.SINGLE(IF(LEN(H10)=0,\"\",IF(COUNTIF(Εργασίες[ΠΡΟΘΕΣΜΙΑ],DATE(ΜηνΈτους,_xlfn.SINGLE(ΑρΜΜήνα),H10))>0,\"Παράδοση εργασίας!\",\"\")))","v":{"$error":"#VALUE!"}}]
[null,{"$f":"IF(LEN(H10)>0,IF(H10=DAY(DATE(ΜηνΈτους,ΑρΜΜήνα+1,0)),\"\",H10+1),\"\")","v":{"$error":"#VALUE!"}},{"$f":"IF(LEN(B12)>0,IF(B12=DAY(DATE(ΜηνΈτους,ΑρΜΜήνα+1,0)),\"\",B12+1),\"\")","v":{"$error":"#VALUE!"}},{"$error":"#VALUE!"},{"$error":"#VALUE!"},{"$error":"#VALUE!"},{"$error":"#VALUE!"},{"$error":"#VALUE!"}]
[null,{"$f":"_xlfn.SINGLE(IF(LEN(B12)=0,\"\",IF(COUNTIF(Εργασίες[ΠΡΟΘΕΣΜΙΑ],DATE(ΜηνΈτους,_xlfn.SINGLE(ΑρΜΜήνα),B12))>0,\"Παράδοση εργασίας!\",\"\")))","v":{"$error":"#VALUE!"}},{"$f":"_xlfn.SINGLE(IF(LEN(C12)=0,\"\",IF(COUNTIF(Εργασίες[ΠΡΟΘΕΣΜΙΑ],DATE(ΜηνΈτους,_xlfn.SINGLE(ΑρΜΜήνα),C12))>0,\"Παράδοση εργασίας!\",\"\")))","v":{"$error":"#VALUE!"}},{"$f":"_xlfn.SINGLE(IF(LEN(D12)=0,\"\",IF(COUNTIF(Εργασίες[ΠΡΟΘΕΣΜΙΑ],DATE(ΜηνΈτους,_xlfn.SINGLE(ΑρΜΜήνα),D12))>0,\"Παράδοση εργασίας!\",\"\")))","v":{"$error":"#VALUE!"}},{"$f":"_xlfn.SINGLE(IF(LEN(E12)=0,\"\",IF(COUNTIF(Εργασίες[ΠΡΟΘΕΣΜΙΑ],DATE(ΜηνΈτους,_xlfn.SINGLE(ΑρΜΜήνα),E12))>0,\"Παράδοση εργασίας!\",\"\")))","v":{"$error":"#VALUE!"}},{"$f":"_xlfn.SINGLE(IF(LEN(F12)=0,\"\",IF(COUNTIF(Εργασίες[ΠΡΟΘΕΣΜΙΑ],DATE(ΜηνΈτους,_xlfn.SINGLE(ΑρΜΜήνα),F12))>0,\"Παράδοση εργασίας!\",\"\")))","v":{"$error":"#VALUE!"}},{"$f":"_xlfn.SINGLE(IF(LEN(G12)=0,\"\",IF(COUNTIF(Εργασίες[ΠΡΟΘΕΣΜΙΑ],DATE(ΜηνΈτους,_xlfn.SINGLE(ΑρΜΜήνα),G12))>0,\"Παράδοση εργασίας!\",\"\")))","v":{"$error":"#VALUE!"}},{"$f":"_xlfn.SINGLE(IF(LEN(H12)=0,\"\",IF(COUNTIF(Εργασίες[ΠΡΟΘΕΣΜΙΑ],DATE(ΜηνΈτους,_xlfn.SINGLE(ΑρΜΜήνα),H12))>0,\"Παράδοση εργασίας!\",\"\")))","v":{"$error":"#VALUE!"}}]
[null,{"$f":"IF(LEN(H12)>0,IF(H12=DAY(DATE(ΜηνΈτους,ΑρΜΜήνα+1,0)),\"\",H12+1),\"\")","v":{"$error":"#VALUE!"}},{"$f":"IF(LEN(B14)>0,IF(B14=DAY(DATE(ΜηνΈτους,ΑρΜΜήνα+1,0)),\"\",B14+1),\"\")","v":{"$error":"#VALUE!"}},{"$error":"#VALUE!"},{"$error":"#VALUE!"},{"$error":"#VALUE!"},{"$error":"#VALUE!"},{"$error":"#VALUE!"}]
[null,{"$f":"_xlfn.SINGLE(IF(LEN(B14)=0,\"\",IF(COUNTIF(Εργασίες[ΠΡΟΘΕΣΜΙΑ],DATE(ΜηνΈτους,_xlfn.SINGLE(ΑρΜΜήνα),B14))>0,\"Παράδοση εργασίας!\",\"\")))","v":{"$error":"#VALUE!"}},{"$f":"_xlfn.SINGLE(IF(LEN(C14)=0,\"\",IF(COUNTIF(Εργασίες[ΠΡΟΘΕΣΜΙΑ],DATE(ΜηνΈτους,_xlfn.SINGLE(ΑρΜΜήνα),C14))>0,\"Παράδοση εργασίας!\",\"\")))","v":{"$error":"#VALUE!"}},{"$f":"_xlfn.SINGLE(IF(LEN(D14)=0,\"\",IF(COUNTIF(Εργασίες[ΠΡΟΘΕΣΜΙΑ],DATE(ΜηνΈτους,_xlfn.SINGLE(ΑρΜΜήνα),D14))>0,\"Παράδοση εργασίας!\",\"\")))","v":{"$error":"#VALUE!"}},{"$f":"_xlfn.SINGLE(IF(LEN(E14)=0,\"\",IF(COUNTIF(Εργασίες[ΠΡΟΘΕΣΜΙΑ],DATE(ΜηνΈτους,_xlfn.SINGLE(ΑρΜΜήνα),E14))>0,\"Παράδοση εργασίας!\",\"\")))","v":{"$error":"#VALUE!"}},{"$f":"_xlfn.SINGLE(IF(LEN(F14)=0,\"\",IF(COUNTIF(Εργασίες[ΠΡΟΘΕΣΜΙΑ],DATE(ΜηνΈτους,_xlfn.SINGLE(ΑρΜΜήνα),F14))>0,\"Παράδοση εργασίας!\",\"\")))","v":{"$error":"#VALUE!"}},{"$f":"_xlfn.SINGLE(IF(LEN(G14)=0,\"\",IF(COUNTIF(Εργασίες[ΠΡΟΘΕΣΜΙΑ],DATE(ΜηνΈτους,_xlfn.SINGLE(ΑρΜΜήνα),G14))>0,\"Παράδοση εργασίας!\",\"\")))","v":{"$error":"#VALUE!"}},{"$f":"_xlfn.SINGLE(IF(LEN(H14)=0,\"\",IF(COUNTIF(Εργασίες[ΠΡΟΘΕΣΜΙΑ],DATE(ΜηνΈτους,_xlfn.SINGLE(ΑρΜΜήνα),H14))>0,\"Παράδοση εργασίας!\",\"\")))","v":{"$error":"#VALUE!"}}]
[null,{"$f":"IF(LEN(H14)>0,IF(H14=DAY(DATE(ΜηνΈτους,ΑρΜΜήνα+1,0)),\"\",H14+1),\"\")","v":{"$error":"#VALUE!"}},{"$f":"IF(LEN(B16)>0,IF(B16=DAY(DATE(ΜηνΈτους,ΑρΜΜήνα+1,0)),\"\",B16+1),\"\")","v":{"$error":"#VALUE!"}},{"$error":"#VALUE!"},{"$error":"#VALUE!"},{"$error":"#VALUE!"},{"$error":"#VALUE!"},{"$error":"#VALUE!"}]
[null,{"$f":"_xlfn.SINGLE(IF(LEN(B16)=0,\"\",IF(COUNTIF(Εργασίες[ΠΡΟΘΕΣΜΙΑ],DATE(ΜηνΈτους,_xlfn.SINGLE(ΑρΜΜήνα),B16))>0,\"Παράδοση εργασίας!\",\"\")))","v":{"$error":"#VALUE!"}},{"$f":"_xlfn.SINGLE(IF(LEN(C16)=0,\"\",IF(COUNTIF(Εργασίες[ΠΡΟΘΕΣΜΙΑ],DATE(ΜηνΈτους,_xlfn.SINGLE(ΑρΜΜήνα),C16))>0,\"Παράδοση εργασίας!\",\"\")))","v":{"$error":"#VALUE!"}},{"$f":"_xlfn.SINGLE(IF(LEN(D16)=0,\"\",IF(COUNTIF(Εργασίες[ΠΡΟΘΕΣΜΙΑ],DATE(ΜηνΈτους,_xlfn.SINGLE(ΑρΜΜήνα),D16))>0,\"Παράδοση εργασίας!\",\"\")))","v":{"$error":"#VALUE!"}},{"$f":"_xlfn.SINGLE(IF(LEN(E16)=0,\"\",IF(COUNTIF(Εργασίες[ΠΡΟΘΕΣΜΙΑ],DATE(ΜηνΈτους,_xlfn.SINGLE(ΑρΜΜήνα),E16))>0,\"Παράδοση εργασίας!\",\"\")))","v":{"$error":"#VALUE!"}},{"$f":"_xlfn.SINGLE(IF(LEN(F16)=0,\"\",IF(COUNTIF(Εργασίες[ΠΡΟΘΕΣΜΙΑ],DATE(ΜηνΈτους,_xlfn.SINGLE(ΑρΜΜήνα),F16))>0,\"Παράδοση εργασίας!\",\"\")))","v":{"$error":"#VALUE!"}},{"$f":"_xlfn.SINGLE(IF(LEN(G16)=0,\"\",IF(COUNTIF(Εργασίες[ΠΡΟΘΕΣΜΙΑ],DATE(ΜηνΈτους,_xlfn.SINGLE(ΑρΜΜήνα),G16))>0,\"Παράδοση εργασίας!\",\"\")))","v":{"$error":"#VALUE!"}},{"$f":"_xlfn.SINGLE(IF(LEN(H16)=0,\"\",IF(COUNTIF(Εργασίες[ΠΡΟΘΕΣΜΙΑ],DATE(ΜηνΈτους,_xlfn.SINGLE(ΑρΜΜήνα),H16))>0,\"Παράδοση εργασίας!\",\"\")))","v":{"$error":"#VALUE!"}}]

{"sheet":"Προβολή εβδομάδας","index":2,"n_rows":17,"n_cols":8,"rows_kept":17}
[null,"ΕΡΓΑΣΊΕΣ","ΠΡΟΒΟΛΗ ΜΗΝΑ"]
[null,"Επιλέξτε μήνα:","Εισαγάγετε έτος:","Επιλέξτε αρ. εβδομάδας:"]
[null,"σεπτεμβρίου",{"$f":"YEAR(TODAY())","v":2022},"Εβδομάδα 1"]
[null," ΠΡΟΒΟΛΗ ΕΒΔΟΜΑΔΑΣ"]
[null,{"$f":"IF(WEEKDAY(DATEVALUE(\" 1 \"&ΕβδΜήνα&ΕβδΈτους),2)=COLUMN(A$2),1,IF(LEN(A5)>0,A5+1,\"\"))","v":{"$error":"#VALUE!"}},{"$error":"#VALUE!"},{"$error":"#VALUE!"},{"$error":"#VALUE!"},{"$error":"#VALUE!"},{"$error":"#VALUE!"},{"$error":"#VALUE!"}]
[null,{"$f":"IF(LEN(H5)>0,IF(H5=ΤελευταίαΗμέραΜήνα_Εβδομάδα,\"\",H5+1),\"\")","v":{"$error":"#VALUE!"}},{"$f":"IF(LEN(B6)>0,IF(B6=ΤελευταίαΗμέραΜήνα_Εβδομάδα,\"\",B6+1),\"\")","v":{"$error":"#VALUE!"}},{"$error":"#VALUE!"},{"$error":"#VALUE!"},{"$error":"#VALUE!"},{"$error":"#VALUE!"},{"$error":"#VALUE!"}]
[null,{"$f":"IF(LEN(H6)>0,IF(H6=ΤελευταίαΗμέραΜήνα_Εβδομάδα,\"\",H6+1),\"\")","v":{"$error":"#VALUE!"}},{"$error":"#VALUE!"},{"$error":"#VALUE!"},{"$error":"#VALUE!"},{"$error":"#VALUE!"},{"$error":"#VALUE!"},{"$error":"#VALUE!"}]
[null,{"$f":"IF(LEN(H7)>0,IF(H7=ΤελευταίαΗμέραΜήνα_Εβδομάδα,\"\",H7+1),\"\")","v":{"$error":"#VALUE!"}},{"$error":"#VALUE!"},{"$error":"#VALUE!"},{"$error":"#VALUE!"},{"$error":"#VALUE!"},{"$error":"#VALUE!"},{"$error":"#VALUE!"}]
[null,{"$f":"IF(LEN(H8)>0,IF(H8=ΤελευταίαΗμέραΜήνα_Εβδομάδα,\"\",H8+1),\"\")","v":{"$error":"#VALUE!"}},{"$error":"#VALUE!"},{"$error":"#VALUE!"},{"$error":"#VALUE!"},{"$error":"#VALUE!"},{"$error":"#VALUE!"},{"$error":"#VALUE!"}]
[null,{"$f":"IF(LEN(H9)>0,IF(H9=ΤελευταίαΗμέραΜήνα_Εβδομάδα,\"\",H9+1),\"\")","v":{"$error":"#VALUE!"}},{"$error":"#VALUE!"},{"$error":"#VALUE!"},{"$error":"#VALUE!"},{"$error":"#VALUE!"},{"$error":"#VALUE!"},{"$error":"#VALUE!"}]
[null,"ΔΕΥΤΕΡΑ","ΤΡΙΤΗ","ΤΕΤΑΡΤΗ","ΠΕΜΠΤΗ","ΠΑΡΑΣΚΕΥΗ","ΣΑΒΒΑΤΟ","ΚΥΡΙΑΚΗ"]
[null,{"$f":"IF(B14=\"\",IF(AND(ISNUMBER(A12),A12<ΤελευταίαΗμέραΜήνα_Εβδομάδα),A12+1,\"\"),IF(B14<=7,\"\",INDEX(ΠροβΕβδΜήνα,ΕβδΕβδομάδα,COLUMN(A$2))-7))","v":{"$error":"#VALUE!"}},{"$error":"#VALUE!"},{"$error":"#VALUE!"},{"$error":"#VALUE!"},{"$error":"#VALUE!"},{"$error":"#VALUE!"},{"$error":"#VALUE!"}]
[null,{"$f":"IF(LEN(B12)=0,\"\",IF(COUNTIF(Εργασίες[ΠΡΟΘΕΣΜΙΑ],DATE(ΕβδΈτους,ΑρΕβδΜήνα,B12))>0,\"Παράδοση εργασίας!\",\"\"))","v":{"$error":"#VALUE!"}},{"$f":"_xlfn.SINGLE(IF(LEN(C12)=0,\"\",IF(COUNTIF(Εργασίες[ΠΡΟΘΕΣΜΙΑ],DATE(ΕβδΈτους,_xlfn.SINGLE(ΑρΕβδΜήνα),C12))>0,\"Παράδοση εργασίας!\",\"\")))","v":{"$error":"#VALUE!"}},{"$f":"_xlfn.SINGLE(IF(LEN(D12)=0,\"\",IF(COUNTIF(Εργασίες[ΠΡΟΘΕΣΜΙΑ],DATE(ΕβδΈτους,_xlfn.SINGLE(ΑρΕβδΜήνα),D12))>0,\"Παράδοση εργασίας!\",\"\")))","v":{"$error":"#VALUE!"}},{"$f":"_xlfn.SINGLE(IF(LEN(E12)=0,\"\",IF(COUNTIF(Εργασίες[ΠΡΟΘΕΣΜΙΑ],DATE(ΕβδΈτους,_xlfn.SINGLE(ΑρΕβδΜήνα),E12))>0,\"Παράδοση εργασίας!\",\"\")))","v":{"$error":"#VALUE!"}},{"$f":"_xlfn.SINGLE(IF(LEN(F12)=0,\"\",IF(COUNTIF(Εργασίες[ΠΡΟΘΕΣΜΙΑ],DATE(ΕβδΈτους,_xlfn.SINGLE(ΑρΕβδΜήνα),F12))>0,\"Παράδοση εργασίας!\",\"\")))","v":{"$error":"#VALUE!"}},{"$f":"_xlfn.SINGLE(IF(LEN(G12)=0,\"\",IF(COUNTIF(Εργασίες[ΠΡΟΘΕΣΜΙΑ],DATE(ΕβδΈτους,_xlfn.SINGLE(ΑρΕβδΜήνα),G12))>0,\"Παράδοση εργασίας!\",\"\")))","v":{"$error":"#VALUE!"}},{"$f":"_xlfn.SINGLE(IF(LEN(H12)=0,\"\",IF(COUNTIF(Εργασίες[ΠΡΟΘΕΣΜΙΑ],DATE(ΕβδΈτους,_xlfn.SINGLE(ΑρΕβδΜήνα),H12))>0,\"Παράδοση εργασίας!\",\"\")))","v":{"$error":"#VALUE!"}}]
[null,{"$f":"INDEX(ΠροβΕβδΜήνα,ΕβδΕβδομάδα,COLUMN(A$2))","v":{"$error":"#VALUE!"}},{"$f":"INDEX(ΠροβΕβδΜήνα,ΕβδΕβδομάδα,COLUMN(B$2))","v":{"$error":"#VALUE!"}},{"$f":"INDEX(ΠροβΕβδΜήνα,ΕβδΕβδομάδα,COLUMN(C$2))","v":{"$error":"#VALUE!"}},{"$f":"INDEX(ΠροβΕβδΜήνα,ΕβδΕβδομάδα,COLUMN(D$2))","v":{"$error":"#VALUE!"}},{"$f":"INDEX(ΠροβΕβδΜήνα,ΕβδΕβδομάδα,COLUMN(E$2))","v":{"$error":"#VALUE!"}},{"$f":"INDEX(ΠροβΕβδΜήνα,ΕβδΕβδομάδα,COLUMN(F$2))","v":{"$error":"#VALUE!"}},{"$f":"INDEX(ΠροβΕβδΜήνα,ΕβδΕβδομάδα,COLUMN(G$2))","v":{"$error":"#VALUE!"}}]
[null,{"$f":"_xlfn.SINGLE(IF(LEN(B14)=0,\"\",IF(COUNTIF(Εργασίες[ΠΡΟΘΕΣΜΙΑ],DATE(ΕβδΈτους,_xlfn.SINGLE(ΑρΕβδΜήνα),B14))>0,\"Παράδοση εργασίας!\",\"\")))","v":{"$error":"#VALUE!"}},{"$f":"_xlfn.SINGLE(IF(LEN(C14)=0,\"\",IF(COUNTIF(Εργασίες[ΠΡΟΘΕΣΜΙΑ],DATE(ΕβδΈτους,_xlfn.SINGLE(ΑρΕβδΜήνα),C14))>0,\"Παράδοση εργασίας!\",\"\")))","v":{"$error":"#VALUE!"}},{"$f":"_xlfn.SINGLE(IF(LEN(D14)=0,\"\",IF(COUNTIF(Εργασίες[ΠΡΟΘΕΣΜΙΑ],DATE(ΕβδΈτους,_xlfn.SINGLE(ΑρΕβδΜήνα),D14))>0,\"Παράδοση εργασίας!\",\"\")))","v":{"$error":"#VALUE!"}},{"$f":"_xlfn.SINGLE(IF(LEN(E14)=0,\"\",IF(COUNTIF(Εργασίες[ΠΡΟΘΕΣΜΙΑ],DATE(ΕβδΈτους,_xlfn.SINGLE(ΑρΕβδΜήνα),E14))>0,\"Παράδοση εργασίας!\",\"\")))","v":{"$error":"#VALUE!"}},{"$f":"_xlfn.SINGLE(IF(LEN(F14)=0,\"\",IF(COUNTIF(Εργασίες[ΠΡΟΘΕΣΜΙΑ],DATE(ΕβδΈτους,_xlfn.SINGLE(ΑρΕβδΜήνα),F14))>0,\"Παράδοση εργασίας!\",\"\")))","v":{"$error":"#VALUE!"}},{"$f":"_xlfn.SINGLE(IF(LEN(G14)=0,\"\",IF(COUNTIF(Εργασίες[ΠΡΟΘΕΣΜΙΑ],DATE(ΕβδΈτους,_xlfn.SINGLE(ΑρΕβδΜήνα),G14))>0,\"Παράδοση εργασίας!\",\"\")))","v":{"$error":"#VALUE!"}},{"$f":"_xlfn.SINGLE(IF(LEN(H14)=0,\"\",IF(COUNTIF(Εργασίες[ΠΡΟΘΕΣΜΙΑ],DATE(ΕβδΈτους,_xlfn.SINGLE(ΑρΕβδΜήνα),H14))>0,\"Παράδοση εργασίας!\",\"\")))","v":{"$error":"#VALUE!"}}]
[null,{"$f":"IFERROR(IF(B14=\"\",IF(AND(ISNUMBER(A16),A16<ΤελευταίαΗμέραΜήνα_Εβδομάδα),A16+1,$H$14+COLUMN(A$2)),IF(B14+7>ΤελευταίαΗμέραΜήνα_Εβδομάδα,\"\",INDEX(ΠροβΕβδΜήνα,ΕβδΕβδομάδα,COLUMN(A$2))+7)),\"\")","v":""},{"$f":"IFERROR(IF(C14=\"\",IF(AND(ISNUMBER(B16),B16<ΤελευταίαΗμέραΜήνα_Εβδομάδα),B16+1,$H$14+COLUMN(B$2)),IF(C14+7>ΤελευταίαΗμέραΜήνα_Εβδομάδα,\"\",INDEX(ΠροβΕβδΜήνα,ΕβδΕβδομάδα,COLUMN(B$2))+7)),\"\")","v":""},{"$f":"IFERROR(IF(D14=\"\",IF(AND(ISNUMBER(C16),C16<ΤελευταίαΗμέραΜήνα_Εβδομάδα),C16+1,$H$14+COLUMN(C$2)),IF(D14+7>ΤελευταίαΗμέραΜήνα_Εβδομάδα,\"\",INDEX(ΠροβΕβδΜήνα,ΕβδΕβδομάδα,COLUMN(C$2))+7)),\"\")","v":""},{"$f":"IFERROR(IF(E14=\"\",IF(AND(ISNUMBER(D16),D16<ΤελευταίαΗμέραΜήνα_Εβδομάδα),D16+1,$H$14+COLUMN(D$2)),IF(E14+7>ΤελευταίαΗμέραΜήνα_Εβδομάδα,\"\",INDEX(ΠροβΕβδΜήνα,ΕβδΕβδομάδα,COLUMN(D$2))+7)),\"\")","v":""},{"$f":"IFERROR(IF(F14=\"\",IF(AND(ISNUMBER(E16),E16<ΤελευταίαΗμέραΜήνα_Εβδομάδα),E16+1,$H$14+COLUMN(E$2)),IF(F14+7>ΤελευταίαΗμέραΜήνα_Εβδομάδα,\"\",INDEX(ΠροβΕβδΜήνα,ΕβδΕβδομάδα,COLUMN(E$2))+7)),\"\")","v":""},{"$f":"IFERROR(IF(G14=\"\",IF(AND(ISNUMBER(F16),F16<ΤελευταίαΗμέραΜήνα_Εβδομάδα),F16+1,$H$14+COLUMN(F$2)),IF(G14+7>ΤελευταίαΗμέραΜήνα_Εβδομάδα,\"\",INDEX(ΠροβΕβδΜήνα,ΕβδΕβδομάδα,COLUMN(F$2))+7)),\"\")","v":""},{"$f":"IFERROR(IF(H14=\"\",IF(AND(ISNUMBER(G16),G16<ΤελευταίαΗμέραΜήνα_Εβδομάδα),G16+1,$H$14+COLUMN(G$2)),IF(H14+7>ΤελευταίαΗμέραΜήνα_Εβδομάδα,\"\",INDEX(ΠροβΕβδΜήνα,ΕβδΕβδομάδα,COLUMN(G$2))+7)),\"\")","v":""}]
[null,{"$f":"_xlfn.SINGLE(IF(LEN(B16)=0,\"\",IF(COUNTIF(Εργασίες[ΠΡΟΘΕΣΜΙΑ],DATE(ΕβδΈτους,_xlfn.SINGLE(ΑρΕβδΜήνα),B16))>0,\"Παράδοση εργασίας!\",\"\")))","v":""},{"$f":"_xlfn.SINGLE(IF(LEN(C16)=0,\"\",IF(COUNTIF(Εργασίες[ΠΡΟΘΕΣΜΙΑ],DATE(ΕβδΈτους,_xlfn.SINGLE(ΑρΕβδΜήνα),C16))>0,\"Παράδοση εργασίας!\",\"\")))","v":""},{"$f":"_xlfn.SINGLE(IF(LEN(D16)=0,\"\",IF(COUNTIF(Εργασίες[ΠΡΟΘΕΣΜΙΑ],DATE(ΕβδΈτους,_xlfn.SINGLE(ΑρΕβδΜήνα),D16))>0,\"Παράδοση εργασίας!\",\"\")))","v":""},{"$f":"_xlfn.SINGLE(IF(LEN(E16)=0,\"\",IF(COUNTIF(Εργασίες[ΠΡΟΘΕΣΜΙΑ],DATE(ΕβδΈτους,_xlfn.SINGLE(ΑρΕβδΜήνα),E16))>0,\"Παράδοση εργασίας!\",\"\")))","v":""},{"$f":"_xlfn.SINGLE(IF(LEN(F16)=0,\"\",IF(COUNTIF(Εργασίες[ΠΡΟΘΕΣΜΙΑ],DATE(ΕβδΈτους,_xlfn.SINGLE(ΑρΕβδΜήνα),F16))>0,\"Παράδοση εργασίας!\",\"\")))","v":""},{"$f":"_xlfn.SINGLE(IF(LEN(G16)=0,\"\",IF(COUNTIF(Εργασίες[ΠΡΟΘΕΣΜΙΑ],DATE(ΕβδΈτους,_xlfn.SINGLE(ΑρΕβδΜήνα),G16))>0,\"Παράδοση εργασίας!\",\"\")))","v":""},{"$f":"_xlfn.SINGLE(IF(LEN(H16)=0,\"\",IF(COUNTIF(Εργασίες[ΠΡΟΘΕΣΜΙΑ],DATE(ΕβδΈτους,_xlfn.SINGLE(ΑρΕβδΜήνα),H16))>0,\"Παράδοση εργασίας!\",\"\")))","v":""}]